[Event "Titled Tuesday Blitz June 13 Late 2023"]
[White "Van Foreest, Jorden"]
[Black "Seemann, Jakub"]
[WhiteFideId "1039784"]
[BlackFideId "21874697"]
[WhiteElo "2633"]
[BlackElo "2364"]
[Result "1-0"]
[Round "2"]
[TimeControl "180+2"]
[Date "2023.06.13"]
[WhiteClock "0:02:02"]
[BlackClock "0:01:11"]
[Board "16"]

1. d4 {[%clk 0:03:00]}  Nf6 {[%clk 0:02:55]} 2. c4 {[%clk 0:03:01]}  e6 {[%clk 0:02:55]} 3. Nf3 {[%clk 0:03:01]}  d5 {[%clk 0:02:55]} 4. g3 {[%clk 0:03:00]}  dxc4 {[%clk 0:02:51]} 5. Bg2 {[%clk 0:03:01]}  c6 {[%clk 0:02:51]} 6. O-O {[%clk 0:02:56]}  b5 {[%clk 0:02:51]} 7. b3 {[%clk 0:02:54]}  cxb3 {[%clk 0:02:51]} 8. Qxb3 {[%clk 0:02:53]}  Bb7 {[%clk 0:02:50]} 9. Bb2 {[%clk 0:02:51]}  Be7 {[%clk 0:02:45]} 10. a4 {[%clk 0:02:49]}  a6 {[%clk 0:02:43]} 11. Ne5 {[%clk 0:02:45]}  O-O {[%clk 0:02:40]} 12. Nd2 {[%clk 0:02:45]}  Nd5 {[%clk 0:02:37]} 13. Rfc1 {[%clk 0:02:43]}  f6 {[%clk 0:02:27]} 14. Nd3 {[%clk 0:02:42]}  Nd7 {[%clk 0:02:26]} 15. Ne4 {[%clk 0:02:40]}  Qb6 {[%clk 0:02:07]} 16. Nec5 {[%clk 0:02:39]}  Nxc5 {[%clk 0:02:02]} 17. Nxc5 {[%clk 0:02:39]}  Bxc5 {[%clk 0:02:00]} 18. Rxc5 {[%clk 0:02:38]}  bxa4 {[%clk 0:01:58]} 19. Qa2 {[%clk 0:02:30]}  Qb3 {[%clk 0:01:44]} 20. Qb1 {[%clk 0:02:11]}  a5 {[%clk 0:01:33]} 21. Ra3 {[%clk 0:02:10]}  Qb4 {[%clk 0:01:31]} 22. Qa1 {[%clk 0:02:05]}  Nb6 {[%clk 0:01:11]} 23. Bc3 {[%clk 0:02:02]} 1-0


[Site "https://www.chess.com"]

[Event "Titled Tuesday Blitz June 13 Late 2023"]
[White "Fiorito, Francisco"]
[Black "Eljanov, Pavel"]
[WhiteFideId "180165"]
[BlackFideId "14102951"]
[WhiteElo "2319"]
[BlackElo "2598"]
[Result "0-1"]
[Round "2"]
[TimeControl "180+2"]
[Date "2023.06.13"]
[WhiteClock "0:00:02"]
[BlackClock "0:00:28"]
[Board "17"]

1. d4 {[%clk 0:02:55]}  d5 {[%clk 0:02:58]} 2. Nc3 {[%clk 0:02:52]}  Nf6 {[%clk 0:02:55]} 3. Bf4 {[%clk 0:02:52]}  e6 {[%clk 0:02:50]} 4. Nb5 {[%clk 0:02:50]}  Na6 {[%clk 0:02:50]} 5. e3 {[%clk 0:02:43]}  Be7 {[%clk 0:02:51]} 6. Nf3 {[%clk 0:02:41]}  O-O {[%clk 0:02:48]} 7. Be2 {[%clk 0:02:39]}  Nh5 {[%clk 0:02:37]} 8. Be5 {[%clk 0:02:29]}  f6 {[%clk 0:02:37]} 9. Bg3 {[%clk 0:02:12]}  Bd7 {[%clk 0:02:24]} 10. a3 {[%clk 0:02:07]}  c5 {[%clk 0:02:09]} 11. c3 {[%clk 0:01:40]}  g6 {[%clk 0:02:01]} 12. a4 {[%clk 0:01:36]}  Nxg3 {[%clk 0:01:45]} 13. hxg3 {[%clk 0:01:35]}  Nc7 {[%clk 0:01:46]} 14. Qc2 {[%clk 0:00:57]}  a6 {[%clk 0:01:35]} 15. Nxc7 {[%clk 0:00:55]}  Qxc7 {[%clk 0:01:36]} 16. Rd1 {[%clk 0:00:46]}  b5 {[%clk 0:01:32]} 17. axb5 {[%clk 0:00:45]}  axb5 {[%clk 0:01:32]} 18. e4 {[%clk 0:00:42]}  b4 {[%clk 0:01:20]} 19. exd5 {[%clk 0:00:36]}  exd5 {[%clk 0:01:19]} 20. dxc5 {[%clk 0:00:32]}  Bxc5 {[%clk 0:01:14]} 21. Rxd5 {[%clk 0:00:20]}  Ra1+ {[%clk 0:01:01]} 22. Rd1 {[%clk 0:00:20]}  Rxd1+ {[%clk 0:00:57]} 23. Qxd1 {[%clk 0:00:21]}  Be6 {[%clk 0:00:37]} 24. Nd4 {[%clk 0:00:21]}  Bf7 {[%clk 0:00:38]} 25. O-O {[%clk 0:00:21]}  Rd8 {[%clk 0:00:37]} 26. Qd2 {[%clk 0:00:21]}  Bxd4 {[%clk 0:00:32]} 27. cxd4 {[%clk 0:00:21]}  Qd6 {[%clk 0:00:33]} 28. Rd1 {[%clk 0:00:22]}  Bb3 {[%clk 0:00:33]} 29. Rc1 {[%clk 0:00:14]}  Qxd4 {[%clk 0:00:33]} 30. Qh6 {[%clk 0:00:11]}  Qd2 {[%clk 0:00:29]} 31. Qxd2 {[%clk 0:00:06]}  Rxd2 {[%clk 0:00:30]} 32. Rc8+ {[%clk 0:00:07]}  Kg7 {[%clk 0:00:30]} 33. Rc7+ {[%clk 0:00:07]}  Kh6 {[%clk 0:00:30]} 34. Bc4 {[%clk 0:00:05]}  Rc2 {[%clk 0:00:28]} 35. Bxb3 {[%clk 0:00:02]}  Rxc7 {[%clk 0:00:28]} 36. f4 {[%clk 0:00:03]}  Rc1+ {[%clk 0:00:28]} 37. Kh2 {[%clk 0:00:02]}  Rb1 {[%clk 0:00:28]} 38. g4 {[%clk 0:00:02]}  Rxb2 {[%clk 0:00:28]} 0-1


[Site "https://www.chess.com"]

[Event "Titled Tuesday Blitz June 13 Late 2023"]
[White "Anton Guijarro, David"]
[Black "Kavutskiy, Konstantin"]
[WhiteFideId "2285525"]
[BlackFideId "2026384"]
[WhiteElo "2618"]
[BlackElo "2323"]
[Result "1/2-1/2"]
[Round "2"]
[TimeControl "180+2"]
[Date "2023.06.13"]
[WhiteClock "0:00:09"]
[BlackClock "0:00:04"]
[Board "18"]

1. Nf3 {[%clk 0:03:00]}  Nf6 {[%clk 0:02:59]} 2. b3 {[%clk 0:03:01]}  g6 {[%clk 0:02:59]} 3. Bb2 {[%clk 0:03:01]}  Bg7 {[%clk 0:02:59]} 4. g3 {[%clk 0:03:02]}  O-O {[%clk 0:02:58]} 5. Bg2 {[%clk 0:03:02]}  d6 {[%clk 0:02:59]} 6. d4 {[%clk 0:03:01]}  a5 {[%clk 0:02:59]} 7. a4 {[%clk 0:02:58]}  Na6 {[%clk 0:02:57]} 8. O-O {[%clk 0:02:58]}  c6 {[%clk 0:02:57]} 9. Re1 {[%clk 0:02:56]}  Qc7 {[%clk 0:02:55]} 10. e4 {[%clk 0:02:53]}  Re8 {[%clk 0:02:54]} 11. e5 {[%clk 0:02:53]}  dxe5 {[%clk 0:02:44]} 12. dxe5 {[%clk 0:02:52]}  Nd5 {[%clk 0:02:41]} 13. Na3 {[%clk 0:02:51]}  h6 {[%clk 0:02:26]} 14. Nc4 {[%clk 0:02:45]}  Nab4 {[%clk 0:02:22]} 15. Nd4 {[%clk 0:02:39]}  h5 {[%clk 0:02:15]} 16. Qe2 {[%clk 0:02:31]}  Bg4 {[%clk 0:02:10]} 17. f3 {[%clk 0:02:31]}  Bd7 {[%clk 0:01:43]} 18. f4 {[%clk 0:02:22]}  Bg4 {[%clk 0:01:42]} 19. Qf2 {[%clk 0:02:22]}  h4 {[%clk 0:01:32]} 20. f5 {[%clk 0:02:17]}  Rad8 {[%clk 0:01:12]} 21. gxh4 {[%clk 0:02:00]}  Nb6 {[%clk 0:00:59]} 22. e6 {[%clk 0:01:30]}  f6 {[%clk 0:00:45]} 23. Ne3 {[%clk 0:01:18]}  Bh5 {[%clk 0:00:41]} 24. fxg6 {[%clk 0:01:15]}  Bxg6 {[%clk 0:00:42]} 25. Ndf5 {[%clk 0:01:11]}  N6d5 {[%clk 0:00:35]} 26. Nxd5 {[%clk 0:00:52]}  Rxd5 {[%clk 0:00:36]} 27. Bxd5 {[%clk 0:00:51]}  Nxd5 {[%clk 0:00:37]} 28. h5 {[%clk 0:00:45]}  Nf4 {[%clk 0:00:35]} 29. Nxe7+ {[%clk 0:00:12]}  Rxe7 {[%clk 0:00:32]} 30. Re3 {[%clk 0:00:12]}  Bxh5 {[%clk 0:00:29]} 31. Rf1 {[%clk 0:00:09]}  Bh6 {[%clk 0:00:23]} 32. Qh4 {[%clk 0:00:06]}  Rg7+ {[%clk 0:00:22]} 33. Kh1 {[%clk 0:00:06]}  Bg5 {[%clk 0:00:18]} 34. Qf2 {[%clk 0:00:04]}  Qe7 {[%clk 0:00:17]} 35. Rg3 {[%clk 0:00:03]}  c5 {[%clk 0:00:16]} 36. Re1 {[%clk 0:00:03]}  b6 {[%clk 0:00:16]} 37. h3 {[%clk 0:00:03]}  Kh7 {[%clk 0:00:14]} 38. Reg1 {[%clk 0:00:03]}  Rg8 {[%clk 0:00:09]} 39. Kh2 {[%clk 0:00:02]}  Rd8 {[%clk 0:00:05]} 40. Bc1 {[%clk 0:00:03]}  Qd6 {[%clk 0:00:03]} 41. Rxg5 {[%clk 0:00:01]}  fxg5 {[%clk 0:00:04]} 42. Qg3 {[%clk 0:00:02]}  Nxe6 {[%clk 0:00:04]} 43. Qxd6 {[%clk 0:00:02]}  Rxd6 {[%clk 0:00:05]} 44. Bxg5 {[%clk 0:00:03]}  Nxg5 {[%clk 0:00:04]} 45. Rxg5 {[%clk 0:00:03]}  Kh6 {[%clk 0:00:05]} 46. Re5 {[%clk 0:00:04]}  Rd2+ {[%clk 0:00:05]} 47. Kg3 {[%clk 0:00:05]}  Rxc2 {[%clk 0:00:05]} 48. Re6+ {[%clk 0:00:05]}  Bg6 {[%clk 0:00:05]} 49. Rxb6 {[%clk 0:00:06]}  Rc3+ {[%clk 0:00:06]} 50. Kf4 {[%clk 0:00:07]}  Rxh3 {[%clk 0:00:04]} 51. Ke5 {[%clk 0:00:07]}  Rc3 {[%clk 0:00:02]} 52. Kd6 {[%clk 0:00:07]}  Kg5 {[%clk 0:00:03]} 53. Rb5 {[%clk 0:00:07]}  Bc2 {[%clk 0:00:03]} 54. Rxc5+ {[%clk 0:00:07]}  Rxc5 {[%clk 0:00:03]} 55. Kxc5 {[%clk 0:00:08]}  Bxb3 {[%clk 0:00:04]} 56. Kb5 {[%clk 0:00:09]}  Bxa4+ {[%clk 0:00:04]} 57. Kxa5 {[%clk 0:00:09]} 1/2-1/2


[Site "https://www.chess.com"]

[Event "Titled Tuesday Blitz June 13 Late 2023"]
[White "Bartel, Michal"]
[Black "Vazquez, Guillermo"]
[WhiteFideId "1119257"]
[BlackFideId "3702308"]
[WhiteElo "2282"]
[BlackElo "2543"]
[Result "0-1"]
[Round "2"]
[TimeControl "180+2"]
[Date "2023.06.13"]
[WhiteClock "0:01:19"]
[BlackClock "0:00:36"]
[Board "21"]

1. e4 {[%clk 0:03:00]}  c6 {[%clk 0:03:00]} 2. Nc3 {[%clk 0:02:59]}  d5 {[%clk 0:03:00]} 3. Nf3 {[%clk 0:02:59]}  Bg4 {[%clk 0:03:00]} 4. h3 {[%clk 0:02:59]}  Bxf3 {[%clk 0:02:59]} 5. Qxf3 {[%clk 0:02:59]}  e6 {[%clk 0:03:00]} 6. g4 {[%clk 0:02:58]}  h5 {[%clk 0:02:45]} 7. Bg2 {[%clk 0:02:57]}  hxg4 {[%clk 0:02:35]} 8. hxg4 {[%clk 0:02:58]}  Rxh1+ {[%clk 0:02:35]} 9. Bxh1 {[%clk 0:02:58]}  Qh4 {[%clk 0:02:33]} 10. d3 {[%clk 0:02:51]}  Nf6 {[%clk 0:02:19]} 11. g5 {[%clk 0:02:50]}  Ng4 {[%clk 0:02:18]} 12. Bg2 {[%clk 0:02:29]}  Bc5 {[%clk 0:02:14]} 13. Nd1 {[%clk 0:02:28]}  Nd7 {[%clk 0:02:02]} 14. Ne3 {[%clk 0:02:25]}  Nde5 {[%clk 0:01:36]} 15. Qf4 {[%clk 0:02:22]}  Bd6 {[%clk 0:01:16]} 16. Ke2 {[%clk 0:02:04]}  dxe4 {[%clk 0:00:56]} 17. Nxg4 {[%clk 0:01:55]}  Nxg4 {[%clk 0:00:53]} 18. Qxd6 {[%clk 0:01:46]}  Qxf2+ {[%clk 0:00:53]} 19. Kd1 {[%clk 0:01:46]}  Qxg2 {[%clk 0:00:52]} 20. g6 {[%clk 0:01:37]}  Qf3+ {[%clk 0:00:42]} 21. Ke1 {[%clk 0:01:36]}  e3 {[%clk 0:00:35]} 22. gxf7+ {[%clk 0:01:35]}  Kxf7 {[%clk 0:00:36]} 23. Qf4+ {[%clk 0:01:19]}  Qxf4 {[%clk 0:00:36]} 0-1


[Site "https://www.chess.com"]

[Event "Titled Tuesday Blitz June 13 Late 2023"]
[White "Bortnyk, Olexandr"]
[Black "Moral Garcia, Serafin"]
[WhiteFideId "14120828"]
[BlackFideId "2201925"]
[WhiteElo "2733"]
[BlackElo "2274"]
[Result "1-0"]
[Round "2"]
[TimeControl "180+2"]
[Date "2023.06.13"]
[WhiteClock "0:01:10"]
[BlackClock "0:00:28"]
[Board "22"]

1. e4 {[%clk 0:03:00]}  e5 {[%clk 0:02:57]} 2. Nf3 {[%clk 0:03:00]}  Nf6 {[%clk 0:02:58]} 3. Nxe5 {[%clk 0:02:59]}  d6 {[%clk 0:02:58]} 4. Nf3 {[%clk 0:02:59]}  Nxe4 {[%clk 0:02:58]} 5. Bd3 {[%clk 0:03:00]}  Nc5 {[%clk 0:02:57]} 6. Be2 {[%clk 0:03:00]}  Be7 {[%clk 0:02:56]} 7. d4 {[%clk 0:03:00]}  Ne4 {[%clk 0:02:56]} 8. O-O {[%clk 0:02:50]}  O-O {[%clk 0:02:54]} 9. c4 {[%clk 0:02:49]}  Nc6 {[%clk 0:02:49]} 10. Qc2 {[%clk 0:02:44]}  Nf6 {[%clk 0:02:45]} 11. Nc3 {[%clk 0:02:39]}  d5 {[%clk 0:02:43]} 12. cxd5 {[%clk 0:02:18]}  Nxd5 {[%clk 0:02:40]} 13. a3 {[%clk 0:02:19]}  Bg4 {[%clk 0:02:32]} 14. Rd1 {[%clk 0:02:13]}  Qd7 {[%clk 0:02:23]} 15. h3 {[%clk 0:02:11]}  Bf5 {[%clk 0:02:21]} 16. Qb3 {[%clk 0:02:01]}  Nxc3 {[%clk 0:02:04]} 17. bxc3 {[%clk 0:02:02]}  b6 {[%clk 0:01:52]} 18. c4 {[%clk 0:01:47]}  Na5 {[%clk 0:01:49]} 19. Qe3 {[%clk 0:01:42]}  Bf6 {[%clk 0:01:45]} 20. Bb2 {[%clk 0:01:43]}  Rfe8 {[%clk 0:01:42]} 21. Ne5 {[%clk 0:01:43]}  Qa4 {[%clk 0:01:34]} 22. Rac1 {[%clk 0:01:28]}  Rad8 {[%clk 0:01:21]} 23. g4 {[%clk 0:01:20]}  Bg6 {[%clk 0:01:14]} 24. f4 {[%clk 0:01:21]}  Bxe5 {[%clk 0:01:00]} 25. dxe5 {[%clk 0:01:18]}  Bc2 {[%clk 0:00:40]} 26. Rxd8 {[%clk 0:01:15]}  Rxd8 {[%clk 0:00:39]} 27. e6 {[%clk 0:01:16]}  f6 {[%clk 0:00:32]} 28. e7 {[%clk 0:01:12]}  Re8 {[%clk 0:00:32]} 29. Qe6+ {[%clk 0:01:11]}  Kh8 {[%clk 0:00:32]} 30. Qf7 {[%clk 0:01:10]}  Bg6 {[%clk 0:00:28]} 31. Qf8+ {[%clk 0:01:10]} 1-0


[Site "https://www.chess.com"]

[Event "Titled Tuesday Blitz June 13 Late 2023"]
[White "Dobrowolski, Piotr"]
[Black "Swiercz, Dariusz"]
[WhiteFideId "1106236"]
[BlackFideId "1126881"]
[WhiteElo "2305"]
[BlackElo "2620"]
[Result "0-1"]
[Round "2"]
[TimeControl "180+2"]
[Date "2023.06.13"]
[WhiteClock "0:00:00"]
[BlackClock "0:00:03"]
[Board "23"]

1. e4 {[%clk 0:02:26]}  c6 {[%clk 0:03:00]} 2. d4 {[%clk 0:02:24]}  d5 {[%clk 0:03:00]} 3. Nc3 {[%clk 0:02:25]}  dxe4 {[%clk 0:03:00]} 4. Nxe4 {[%clk 0:02:25]}  Nf6 {[%clk 0:03:01]} 5. Nxf6+ {[%clk 0:02:23]}  exf6 {[%clk 0:03:02]} 6. c3 {[%clk 0:02:24]}  Bd6 {[%clk 0:03:02]} 7. Bd3 {[%clk 0:02:24]}  O-O {[%clk 0:03:02]} 8. Qc2 {[%clk 0:02:24]}  Re8+ {[%clk 0:03:02]} 9. Ne2 {[%clk 0:02:25]}  h5 {[%clk 0:03:03]} 10. O-O {[%clk 0:02:25]}  Nd7 {[%clk 0:03:01]} 11. Bd2 {[%clk 0:02:21]}  Nf8 {[%clk 0:03:01]} 12. Rae1 {[%clk 0:02:19]}  h4 {[%clk 0:02:55]} 13. h3 {[%clk 0:02:18]}  g6 {[%clk 0:02:53]} 14. f4 {[%clk 0:02:18]}  f5 {[%clk 0:02:51]} 15. c4 {[%clk 0:02:06]}  Bc7 {[%clk 0:02:35]} 16. Bc3 {[%clk 0:02:02]}  Be6 {[%clk 0:02:33]} 17. Rd1 {[%clk 0:01:59]}  Nh7 {[%clk 0:02:27]} 18. d5 {[%clk 0:01:47]}  cxd5 {[%clk 0:02:27]} 19. c5 {[%clk 0:01:48]}  Bd7 {[%clk 0:02:04]} 20. Nd4 {[%clk 0:01:44]}  Nf6 {[%clk 0:02:03]} 21. b4 {[%clk 0:01:42]}  a6 {[%clk 0:01:54]} 22. Bb2 {[%clk 0:01:41]}  Ne4 {[%clk 0:01:39]} 23. Bxe4 {[%clk 0:01:39]}  Rxe4 {[%clk 0:01:40]} 24. Nf3 {[%clk 0:01:24]}  Rc4 {[%clk 0:01:35]} 25. Qb3 {[%clk 0:01:13]}  Be6 {[%clk 0:01:18]} 26. Rd4 {[%clk 0:01:03]}  Bxf4 {[%clk 0:00:41]} 27. Re1 {[%clk 0:00:52]}  Bh6 {[%clk 0:00:26]} 28. Rxc4 {[%clk 0:00:29]}  dxc4 {[%clk 0:00:27]} 29. Qc3 {[%clk 0:00:30]}  Kh7 {[%clk 0:00:28]} 30. Nd4 {[%clk 0:00:24]}  Bd5 {[%clk 0:00:15]} 31. Re5 {[%clk 0:00:11]}  Qd7 {[%clk 0:00:10]} 32. Qe1 {[%clk 0:00:04]}  Be4 {[%clk 0:00:08]} 33. Qxh4 {[%clk 0:00:02]}  Re8 {[%clk 0:00:08]} 34. Nf3 {[%clk 0:00:00]}  Rxe5 {[%clk 0:00:03]} 0-1


[Site "https://www.chess.com"]

[Event "Titled Tuesday Blitz June 13 Late 2023"]
[White "Schnaider, Ilan"]
[Black "Zhigalko, Sergei"]
[WhiteFideId "169013"]
[BlackFideId "13502956"]
[WhiteElo "2224"]
[BlackElo "2626"]
[Result "0-1"]
[Round "2"]
[TimeControl "180+2"]
[Date "2023.06.13"]
[WhiteClock "0:00:14"]
[BlackClock "0:00:14"]
[Board "28"]

1. e4 {[%clk 0:03:00]}  c5 {[%clk 0:03:00]} 2. Nf3 {[%clk 0:03:00]}  Nc6 {[%clk 0:03:00]} 3. Bb5 {[%clk 0:03:00]}  Nf6 {[%clk 0:03:00]} 4. e5 {[%clk 0:02:55]}  Nd5 {[%clk 0:02:59]} 5. O-O {[%clk 0:02:54]}  Nc7 {[%clk 0:03:00]} 6. Bxc6 {[%clk 0:02:47]}  dxc6 {[%clk 0:03:01]} 7. Re1 {[%clk 0:02:47]}  h6 {[%clk 0:03:00]} 8. c3 {[%clk 0:02:46]}  Bf5 {[%clk 0:02:53]} 9. d4 {[%clk 0:02:45]}  e6 {[%clk 0:02:53]} 10. Be3 {[%clk 0:02:39]}  Nd5 {[%clk 0:02:53]} 11. Nbd2 {[%clk 0:02:37]}  Be7 {[%clk 0:02:49]} 12. h3 {[%clk 0:02:30]}  O-O {[%clk 0:02:48]} 13. Nf1 {[%clk 0:02:26]}  cxd4 {[%clk 0:02:45]} 14. Nxd4 {[%clk 0:02:16]}  Bg6 {[%clk 0:02:43]} 15. Qf3 {[%clk 0:02:11]}  Qc7 {[%clk 0:02:39]} 16. Ng3 {[%clk 0:01:59]}  Rad8 {[%clk 0:02:25]} 17. Qg4 {[%clk 0:01:59]}  c5 {[%clk 0:01:52]} 18. Nxe6 {[%clk 0:01:51]}  fxe6 {[%clk 0:01:45]} 19. Qxg6 {[%clk 0:01:51]}  Nxe3 {[%clk 0:01:42]} 20. Qxe6+ {[%clk 0:01:47]}  Kh8 {[%clk 0:01:42]} 21. Rxe3 {[%clk 0:01:45]}  c4 {[%clk 0:01:40]} 22. Rae1 {[%clk 0:01:41]}  Bc5 {[%clk 0:01:39]} 23. Rf3 {[%clk 0:01:23]}  Rxf3 {[%clk 0:01:25]} 24. gxf3 {[%clk 0:01:23]}  Rd2 {[%clk 0:01:24]} 25. Ne4 {[%clk 0:01:20]}  Rxb2 {[%clk 0:01:20]} 26. Qd5 {[%clk 0:00:42]}  Bb6 {[%clk 0:01:08]} 27. Rf1 {[%clk 0:00:30]}  Rxa2 {[%clk 0:00:56]} 28. e6 {[%clk 0:00:30]}  Ra5 {[%clk 0:00:56]} 29. Qd2 {[%clk 0:00:17]}  Re5 {[%clk 0:00:56]} 30. Rd1 {[%clk 0:00:13]}  Rxe6 {[%clk 0:00:53]} 31. Qd5 {[%clk 0:00:13]}  Rg6+ {[%clk 0:00:45]} 32. Kf1 {[%clk 0:00:13]}  Qf4 {[%clk 0:00:16]} 33. Ke2 {[%clk 0:00:11]}  Rg2 {[%clk 0:00:13]} 34. Rf1 {[%clk 0:00:09]}  Qe3+ {[%clk 0:00:12]} 35. Kd1 {[%clk 0:00:10]}  Qxf3+ {[%clk 0:00:12]} 36. Ke1 {[%clk 0:00:09]}  Rg6 {[%clk 0:00:06]} 37. Kd2 {[%clk 0:00:04]}  Qxh3 {[%clk 0:00:04]} 38. Re1 {[%clk 0:00:02]}  Qe6 {[%clk 0:00:04]} 39. Qxb7 {[%clk 0:00:02]}  Qg8 {[%clk 0:00:03]} 40. Kc2 {[%clk 0:00:01]}  Re6 {[%clk 0:00:03]} 41. f3 {[%clk 0:00:01]}  Qf8 {[%clk 0:00:03]} 42. Qd5 {[%clk 0:00:02]}  Re7 {[%clk 0:00:04]} 43. Qd2 {[%clk 0:00:02]}  Qxf3 {[%clk 0:00:02]} 44. Ng5 {[%clk 0:00:02]}  Qd3+ {[%clk 0:00:02]} 45. Qxd3 {[%clk 0:00:02]}  cxd3+ {[%clk 0:00:03]} 46. Kd2 {[%clk 0:00:03]}  Rxe1 {[%clk 0:00:03]} 47. Nf7+ {[%clk 0:00:04]}  Kg8 {[%clk 0:00:04]} 48. Nxh6+ {[%clk 0:00:03]}  gxh6 {[%clk 0:00:05]} 49. Kxe1 {[%clk 0:00:04]}  a5 {[%clk 0:00:05]} 50. Kd2 {[%clk 0:00:05]}  a4 {[%clk 0:00:06]} 51. Kxd3 {[%clk 0:00:05]}  h5 {[%clk 0:00:07]} 52. c4 {[%clk 0:00:05]}  h4 {[%clk 0:00:08]} 53. c5 {[%clk 0:00:06]}  Bxc5 {[%clk 0:00:08]} 54. Kc4 {[%clk 0:00:07]}  h3 {[%clk 0:00:09]} 55. Kxc5 {[%clk 0:00:07]}  h2 {[%clk 0:00:10]} 56. Kb4 {[%clk 0:00:08]}  h1=Q {[%clk 0:00:10]} 57. Kxa4 {[%clk 0:00:09]}  Qh5 {[%clk 0:00:10]} 58. Kb4 {[%clk 0:00:09]}  Kf7 {[%clk 0:00:11]} 59. Kc4 {[%clk 0:00:10]}  Ke6 {[%clk 0:00:12]} 60. Kd4 {[%clk 0:00:10]}  Qg5 {[%clk 0:00:12]} 61. Kc4 {[%clk 0:00:09]}  Kd6 {[%clk 0:00:12]} 62. Kb4 {[%clk 0:00:10]}  Qf4+ {[%clk 0:00:12]} 63. Kb3 {[%clk 0:00:09]}  Kc5 {[%clk 0:00:12]} 64. Ka3 {[%clk 0:00:10]}  Qe3+ {[%clk 0:00:12]} 65. Ka2 {[%clk 0:00:11]}  Qd3 {[%clk 0:00:12]} 66. Ka1 {[%clk 0:00:11]}  Qb5 {[%clk 0:00:12]} 67. Ka2 {[%clk 0:00:12]}  Kc4 {[%clk 0:00:13]} 68. Ka1 {[%clk 0:00:13]}  Kc3 {[%clk 0:00:14]} 69. Ka2 {[%clk 0:00:14]}  Qb2# {[%clk 0:00:14]} 0-1


[Site "https://www.chess.com"]

[Event "Titled Tuesday Blitz June 13 Late 2023"]
[White "Tarlabasi, Emirhan"]
[Black "Aravindh, Chithambaram VR."]
[WhiteFideId "6350275"]
[BlackFideId "5072786"]
[WhiteElo "2200"]
[BlackElo "2596"]
[Result "0-1"]
[Round "2"]
[TimeControl "180+2"]
[Date "2023.06.13"]
[WhiteClock "0:00:09"]
[BlackClock "0:01:13"]
[Board "31"]

1. Nf3 {[%clk 0:03:00]}  c6 {[%clk 0:02:55]} 2. c4 {[%clk 0:03:01]}  d5 {[%clk 0:02:56]} 3. b3 {[%clk 0:03:01]}  Nf6 {[%clk 0:02:55]} 4. Bb2 {[%clk 0:03:01]}  g6 {[%clk 0:02:55]} 5. g3 {[%clk 0:03:02]}  Bg7 {[%clk 0:02:55]} 6. Bg2 {[%clk 0:03:02]}  O-O {[%clk 0:02:56]} 7. O-O {[%clk 0:03:03]}  a5 {[%clk 0:02:55]} 8. Nc3 {[%clk 0:02:38]}  dxc4 {[%clk 0:02:45]} 9. bxc4 {[%clk 0:02:38]}  Na6 {[%clk 0:02:43]} 10. d4 {[%clk 0:02:37]}  Be6 {[%clk 0:02:43]} 11. Qa4 {[%clk 0:02:06]}  Qb6 {[%clk 0:02:28]} 12. Ba3 {[%clk 0:01:55]}  Nb4 {[%clk 0:02:28]} 13. Rab1 {[%clk 0:01:49]}  Bxc4 {[%clk 0:02:26]} 14. Bxb4 {[%clk 0:01:47]}  axb4 {[%clk 0:02:27]} 15. Qxb4 {[%clk 0:01:48]}  Qxb4 {[%clk 0:02:26]} 16. Rxb4 {[%clk 0:01:49]}  Ba6 {[%clk 0:02:17]} 17. Rfb1 {[%clk 0:01:24]}  Rfd8 {[%clk 0:02:16]} 18. e3 {[%clk 0:01:23]}  Ne8 {[%clk 0:02:03]} 19. Bf1 {[%clk 0:01:23]}  Nd6 {[%clk 0:02:02]} 20. Ne5 {[%clk 0:00:57]}  Bxf1 {[%clk 0:01:57]} 21. Kxf1 {[%clk 0:00:57]}  c5 {[%clk 0:01:51]} 22. Rb6 {[%clk 0:00:28]}  cxd4 {[%clk 0:01:37]} 23. exd4 {[%clk 0:00:29]}  Bxe5 {[%clk 0:01:35]} 24. dxe5 {[%clk 0:00:29]}  Nc4 {[%clk 0:01:35]} 25. Rxb7 {[%clk 0:00:26]}  Nd2+ {[%clk 0:01:36]} 26. Ke2 {[%clk 0:00:22]}  Nxb1 {[%clk 0:01:37]} 27. Rxb1 {[%clk 0:00:23]}  Ra3 {[%clk 0:01:34]} 28. Rc1 {[%clk 0:00:21]}  Kg7 {[%clk 0:01:28]} 29. f4 {[%clk 0:00:21]}  h5 {[%clk 0:01:24]} 30. Rc2 {[%clk 0:00:21]}  h4 {[%clk 0:01:22]} 31. Ne4 {[%clk 0:00:20]}  hxg3 {[%clk 0:01:18]} 32. hxg3 {[%clk 0:00:21]}  Rh8 {[%clk 0:01:19]} 33. Nf2 {[%clk 0:00:19]}  Rxg3 {[%clk 0:01:17]} 34. Rc7 {[%clk 0:00:18]}  Ra8 {[%clk 0:01:15]} 35. Ne4 {[%clk 0:00:14]}  Rxa2+ {[%clk 0:01:14]} 36. Kf1 {[%clk 0:00:13]}  Rf3+ {[%clk 0:01:13]} 37. Ke1 {[%clk 0:00:09]}  Re3+ {[%clk 0:01:13]} 0-1


[Site "https://www.chess.com"]

[Event "Titled Tuesday Blitz June 13 Late 2023"]
[White "Makaraci, Tunahan"]
[Black "Fressinet, Laurent"]
[WhiteFideId "6356559"]
[BlackFideId "608742"]
[WhiteElo "2160"]
[BlackElo "2633"]
[Result "0-1"]
[Round "2"]
[TimeControl "180+2"]
[Date "2023.06.13"]
[WhiteClock "0:00:34"]
[BlackClock "0:01:34"]
[Board "33"]

1. e4 {[%clk 0:03:00]}  e5 {[%clk 0:02:58]} 2. Nf3 {[%clk 0:03:00]}  Nc6 {[%clk 0:02:59]} 3. Bc4 {[%clk 0:02:55]}  Bc5 {[%clk 0:02:58]} 4. c3 {[%clk 0:02:55]}  Nf6 {[%clk 0:02:56]} 5. d4 {[%clk 0:02:55]}  exd4 {[%clk 0:02:56]} 6. b4 {[%clk 0:02:56]}  Be7 {[%clk 0:02:52]} 7. b5 {[%clk 0:02:49]}  Na5 {[%clk 0:02:50]} 8. Bd3 {[%clk 0:02:49]}  d5 {[%clk 0:02:48]} 9. e5 {[%clk 0:02:49]}  Ne4 {[%clk 0:02:47]} 10. cxd4 {[%clk 0:02:50]}  O-O {[%clk 0:02:46]} 11. O-O {[%clk 0:02:50]}  Bf5 {[%clk 0:02:46]} 12. Qc2 {[%clk 0:02:40]}  c6 {[%clk 0:02:45]} 13. a4 {[%clk 0:02:36]}  Rc8 {[%clk 0:02:43]} 14. Qb2 {[%clk 0:02:10]}  c5 {[%clk 0:02:23]} 15. dxc5 {[%clk 0:02:04]}  Bxc5 {[%clk 0:02:24]} 16. Be3 {[%clk 0:02:00]}  Bxe3 {[%clk 0:02:19]} 17. fxe3 {[%clk 0:02:00]}  Ng3 {[%clk 0:02:11]} 18. Bxf5 {[%clk 0:01:57]}  Nxf5 {[%clk 0:02:12]} 19. Qe2 {[%clk 0:01:30]}  Nc4 {[%clk 0:02:10]} 20. e4 {[%clk 0:01:23]}  Nfe3 {[%clk 0:02:09]} 21. Rc1 {[%clk 0:01:15]}  dxe4 {[%clk 0:02:08]} 22. Nfd2 {[%clk 0:01:15]}  Qd4 {[%clk 0:02:04]} 23. Nb3 {[%clk 0:01:09]}  Qxe5 {[%clk 0:02:04]} 24. Nc3 {[%clk 0:01:03]}  h5 {[%clk 0:01:55]} 25. h3 {[%clk 0:00:53]}  Rfe8 {[%clk 0:01:50]} 26. Nd1 {[%clk 0:00:47]}  Nxd1 {[%clk 0:01:40]} 27. Qxd1 {[%clk 0:00:48]}  Nb2 {[%clk 0:01:38]} 28. Qd4 {[%clk 0:00:45]}  Qxd4+ {[%clk 0:01:36]} 29. Nxd4 {[%clk 0:00:46]}  Nd3 {[%clk 0:01:37]} 30. Rf1 {[%clk 0:00:41]}  g6 {[%clk 0:01:36]} 31. Rad1 {[%clk 0:00:34]}  Rc4 {[%clk 0:01:34]} 0-1


[Site "https://www.chess.com"]